bitfinex-derivatives/quotes_BTCF0:USTF0_20241104
["timestamp","ask_amount","ask_price","bid_price","bid_amount"]
[1730751933368,0.3702068,67759.0,67758.0,1.685519]
[1730751933566,0.22369501,67759.0,67758.0,1.685519]
[1730751934360,0.22369501,67759.0,67758.0,1.575839]
[1730751934661,0.22369501,67759.0,67758.0,0.185519]
[1730751935966,0.11366847,67759.0,67758.0,0.185519]
[1730751938567,0.11366847,67759.0,67758.0,0.075839]
[1730751939376,0.03983047,67759.0,67758.0,0.075839]
[1730751940070,0.11366847,67759.0,67758.0,0.075839]
[1730751941683,0.11366847,67759.0,67758.0,1.575839]
[1730751944076,0.17836213,67759.0,67758.0,1.575839]
[1730751944376,0.03983047,67759.0,67758.0,1.575839]
[1730751944582,0.004,67759.0,67758.0,1.575839]
[1730751945478,0.04016573,67759.0,67758.0,1.575839]
[1730751945672,0.06869349,67759.0,67758.0,1.575839]
[1730751947577,0.14253149,67759.0,67758.0,1.575839]
[1730751947977,0.14253149,67759.0,67758.0,1.685519]
[1730751948178,0.18786433,67759.0,67758.0,1.685519]
[1730751948379,0.14253149,67759.0,67758.0,1.685519]
[1730751948873,0.18786432,67759.0,67758.0,1.685519]
[1730751950595,0.11402632,67759.0,67758.0,1.685519]
[1730751950997,0.004,67759.0,67758.0,1.685519]
[1730751951897,0.004,67759.0,67758.0,1.575839]
[1730751952196,0.004,67759.0,67758.0,1.685519]
[1730751952397,0.077838,67759.0,67758.0,1.685519]
[1730751953297,0.077838,67759.0,67758.0,1.72967884]
[1730751953807,0.077838,67759.0,67758.0,1.685519]
[1730751953990,0.077838,67759.0,67758.0,1.72967884]
[1730751954194,0.077838,67759.0,67758.0,1.685519]
[1730751954897,0.077838,67759.0,67758.0,1.61168]
[1730751955105,0.077838,67759.0,67758.0,1.502]
[1730751955402,0.077838,67759.0,67758.0,0.002]
[1730751955403,0.520598,67759.0,67758.0,0.002]
[1730751956197,0.077838,67759.0,67758.0,0.002]
[1730751957906,0.10636983,67759.0,67758.0,0.002]
[1730751958092,0.077838,67759.0,67758.0,0.002]
[1730751959104,0.26041771,67759.0,67758.0,0.002]
[1730751959304,0.33428701,67759.0,67758.0,0.002]
[1730751960294,0.18787805,67759.0,67758.0,0.002]
[1730751960692,0.3342855,67759.0,67758.0,0.002]
[1730751961101,0.18787654,67759.0,67758.0,0.002]
[1730751961697,0.14253958,67759.0,67758.0,0.075839]
[1730751963398,0.14253958,67759.0,67758.0,0.002]
[1730751963999,0.14253854,67759.0,67758.0,0.002]
[1730751966108,0.077838,67759.0,67758.0,0.04631522]
[1730751968209,0.077838,67759.0,67758.0,0.002]
[1730751976612,0.077838,67759.0,67758.0,0.04631522]
[1730751976815,0.077838,67759.0,67758.0,0.12015422]
[1730751979415,0.077838,67759.0,67758.0,0.075839]
[1730751981118,0.14253729,67759.0,67758.0,0.075839]
[1730751982427,0.14253729,67759.0,67758.0,0.002]
[1730751982617,0.14253842,67759.0,67758.0,0.002]
[1730751983309,0.18787516,67759.0,67758.0,0.002]
[1730751985627,0.14253842,67759.0,67758.0,0.002]
[1730751986417,0.18787632,67759.0,67758.0,0.002]
[1730751987315,0.18788217,67759.0,67758.0,0.002]
[1730751989124,0.077838,67759.0,67758.0,0.002]
[1730751991824,0.077838,67759.0,67758.0,0.12012439]
[1730751992024,0.077838,67759.0,67758.0,0.20393719]
[1730751992525,0.077838,67759.0,67758.0,0.13009819]
[1730751992932,0.077838,67759.0,67758.0,0.04628539]
[1730751994428,0.077838,67759.0,67758.0,0.002]
[1730751995727,0.077838,67759.0,67758.0,0.04628539]
[1730751996129,0.077838,67759.0,67758.0,0.002]
[1730751996130,0.14254039,67759.0,67758.0,0.002]
[1730751996534,0.14254026,67759.0,67758.0,0.002]
[1730751998830,0.14254026,67759.0,67758.0,0.0858128]
[1730751999634,0.50334026,67759.0,67758.0,0.0858128]
[1730752000830,0.50334026,67759.0,67758.0,0.002]
[1730752001139,0.54867779,67759.0,67758.0,0.002]
[1730752002440,0.50334026,67759.0,67758.0,0.002]
[1730752003944,0.54867864,67759.0,67758.0,0.002]
[1730752004246,0.438638,67759.0,67758.0,0.002]
[1730752004537,0.438638,67759.0,67758.0,0.04631707]
[1730752004744,0.438638,67759.0,67758.0,0.002]
[1730752004932,1.10342534,67759.0,67752.0,0.04431707]
[1730752005136,1.10342534,67759.0,67742.0,0.05462459]
[1730752005137,0.073849,67749.0,67742.0,0.05462459]
[1730752005332,0.4446128,67743.0,67739.0,0.0294546]
[1730752005634,0.073868,67732.0,67731.0,0.0103]
[1730752005837,0.073872,67728.0,67727.0,0.05887979]
[1730752006442,0.073872,67728.0,67727.0,0.0838128]
[1730752006939,0.076872,67728.0,67727.0,0.0838128]
[1730752007643,0.077872,67728.0,67727.0,0.0848128]
[1730752008134,0.004,67728.0,67727.0,0.1586858]
[1730752008336,0.074872,67728.0,67727.0,0.1586858]
[1730752008538,0.080872,67728.0,67727.0,0.1596858]
[1730752010339,0.11607657,67728.0,67727.0,0.1596858]
[1730752010546,0.04220457,67728.0,67727.0,0.1596858]
[1730752010932,0.007,67728.0,67727.0,0.1596858]
[1730752011131,0.007,67728.0,67727.0,1.6596858]
[1730752011332,0.3608,67732.0,67731.0,0.073869]
[1730752011333,0.32383438,67732.0,67731.0,0.073869]
[1730752011533,0.32383438,67732.0,67731.0,0.1576818]
[1730752012047,0.32383438,67732.0,67731.0,1.6576818]
[1730752012748,0.33283438,67732.0,67731.0,1.6576818]
[1730752012946,0.34483438,67732.0,67731.0,1.6586818]
[1730752015441,0.41870238,67732.0,67731.0,1.6586818]
[1730752017349,0.41870238,67732.0,67731.0,0.0848128]
[1730752017539,0.50251518,67732.0,67731.0,0.001]
[1730752017737,0.41870238,67732.0,67731.0,0.001]
[1730752021750,0.41870238,67732.0,67716.0,0.00221505]
[1730752021751,0.1576918,67722.0,67716.0,0.00221505]
[1730752021952,0.073884,67718.0,67717.0,0.073884]
[1730752022256,0.073882,67720.0,67719.0,0.073881]
[1730752025759,0.073882,67720.0,67719.0,0.076881]
[1730752026762,0.3608,67724.0,67719.0,0.07659974]
[1730752026950,0.07388,67722.0,67721.0,0.1576918]
[1730752027764,0.07388,67722.0,67721.0,0.0838128]
[1730752028552,0.07388,67722.0,67721.0,0.1576928]
[1730752029374,0.08288,67722.0,67721.0,0.1586928]
[1730752029664,0.09588,67722.0,67721.0,0.23329254]
[1730752030254,0.08288,67722.0,67721.0,0.23329254]
[1730752030455,0.08988,67722.0,67721.0,0.2658248]
[1730752030657,0.08488,67722.0,67721.0,0.2648248]
[1730752031053,0.07788,67722.0,67721.0,0.2648248]
[1730752031269,0.08888,67722.0,67721.0,0.2648248]
[1730752031966,0.08888,67722.0,67721.0,0.26486955]
[1730752032268,0.09488,67722.0,67721.0,0.26586955]
[1730752032473,0.09488,67722.0,67721.0,0.10817675]
[1730752032765,0.1806928,67722.0,67721.0,0.10817675]
[1730752032965,0.1806928,67722.0,67721.0,0.07566126]
[1730752033163,0.1786928,67722.0,67721.0,0.002]
[1730752033369,0.1786928,67722.0,67711.0,0.44499]
[1730752033370,0.6216928,67722.0,67718.0,0.07366126]
[1730752033562,0.434681,67720.0,67718.0,0.07366126]
[1730752033762,0.10968,67719.0,67713.0,0.07366126]
[1730752033970,0.4446128,67714.0,67711.0,0.07366126]
[1730752034162,0.073892,67710.0,67709.0,0.07366126]
[1730752034468,0.073892,67710.0,67705.0,0.00221552]
[1730752034469,0.073896,67706.0,67705.0,0.00221552]
[1730752034675,0.5185088,67706.0,67705.0,0.00221552]
[1730752035967,0.5185088,67706.0,67705.0,0.00321552]
[1730752035968,0.5305088,67706.0,67705.0,0.00321552]
[1730752036671,0.9735888,67706.0,67705.0,0.001]
[1730752036973,1.19563757,67706.0,67705.0,0.001]
[1730752037372,1.23967501,67706.0,67705.0,0.001]
[1730752037570,1.25367501,67706.0,67705.0,0.002]
[1730752038682,1.28882699,67706.0,67705.0,0.002]
[1730752038972,0.84574699,67706.0,67705.0,0.002]
[1730752039180,0.82757675,67706.0,67705.0,0.002]
[1730752039381,0.95542699,67706.0,67705.0,0.002]
[1730752044289,0.073905,67698.0,67697.0,0.0103]
[1730752044489,0.073905,67698.0,67692.0,0.07366126]
[1730752044490,0.07391,67693.0,67692.0,0.07366126]
[1730752044688,0.12785024,67693.0,67690.0,0.07366126]
[1730752044883,0.073913,67691.0,67690.0,0.07366126]
[1730752045089,0.073913,67691.0,67690.0,0.18084571]
[1730752045392,0.073913,67691.0,67685.0,0.08831969]
[1730752045393,0.073915,67689.0,67688.0,0.07347984]
[1730752045587,0.073915,67689.0,67680.0,0.0313]
[1730752045588,0.073916,67688.0,67684.0,0.10579159]
[1730752045789,0.434719,67685.0,67684.0,0.0323]
[1730752046389,0.073921,67683.0,67682.0,0.07349159]
[1730752046694,0.073921,67683.0,67682.0,0.18083691]
[1730752047079,0.073921,67683.0,67682.0,0.07349159]
[1730752047485,0.12785024,67684.0,67682.0,0.18076968]
[1730752047687,0.12785024,67684.0,67682.0,0.07345481]
[1730752048487,0.074921,67683.0,67682.0,0.01]
[1730752048997,0.074921,67683.0,67682.0,0.016]
[1730752049387,0.074921,67683.0,67682.0,0.007]
[1730752049589,0.075921,67683.0,67682.0,0.017]
[1730752050493,0.185561,67683.0,67682.0,0.017]
[1730752056290,0.14856432,67683.0,67682.0,0.017]
[1730752056499,0.09676897,67683.0,67682.0,0.12373107]
[1730752056997,0.073921,67683.0,67682.0,0.12373107]
[1730752059596,0.073921,67683.0,67682.0,0.12333316]
[1730752060101,0.073921,67683.0,67682.0,0.21165285]
[1730752061005,0.073921,67683.0,67682.0,0.12333316]
[1730752061601,0.073921,67683.0,67682.0,0.21165258]
[1730752062109,0.073921,67683.0,67682.0,0.12333316]
[1730752063202,0.073921,67683.0,67682.0,0.25047513]
[1730752067507,0.16341069,67684.0,67682.0,0.25047513]
[1730752067707,0.23733069,67684.0,67683.0,0.23347513]
[1730752068811,0.23833069,67684.0,67683.0,0.23347513]
[1730752069004,0.23933069,67684.0,67683.0,0.23347513]
[1730752069201,0.23833069,67684.0,67683.0,0.23347513]
[1730752069403,0.23833069,67684.0,67683.0,0.24347513]
[1730752069595,0.23833069,67684.0,67683.0,0.24947513]
[1730752069596,0.23933069,67684.0,67683.0,0.24947513]
[1730752071713,0.23933069,67684.0,67683.0,0.12233316]
[1730752072316,0.23933069,67684.0,67683.0,0.016]
[1730752072915,0.23933069,67684.0,67683.0,0.1224763]
[1730752073312,0.19538938,67684.0,67683.0,0.1224763]
[1730752073705,0.19538938,67684.0,67683.0,0.21107667]
[1730752074109,0.19538938,67684.0,67683.0,0.10460037]
[1730752074712,0.19538938,67684.0,67683.0,0.016]
[1730752074909,0.19538938,67684.0,67683.0,0.12261223]
[1730752075105,0.19538938,67684.0,67683.0,0.016]
[1730752080822,0.14359491,67684.0,67683.0,0.24998144]
[1730752081616,0.05968598,67684.0,67683.0,0.24998144]
[1730752081812,0.09563362,67684.0,67683.0,0.24998144]
[1730752082724,0.09563362,67684.0,67683.0,0.28218144]
[1730752083215,0.17954255,67684.0,67683.0,0.28218144]
[1730752083417,0.17954255,67684.0,67683.0,0.24998144]
[1730752086523,0.17954255,67684.0,67683.0,0.12274522]
[1730752087911,0.17954255,67684.0,67683.0,0.19666622]
[1730752088116,0.17954255,67684.0,67683.0,0.28543669]
[1730752089115,0.54034255,67684.0,67683.0,0.19666622]
[1730752089315,0.54034255,67684.0,67683.0,0.19633946]
[1730752089724,0.54034255,67684.0,67683.0,0.19633335]
[1730752089914,0.54034255,67684.0,67683.0,0.28510382]
[1730752090820,0.54034255,67684.0,67683.0,0.21118282]
[1730752091024,0.54034255,67684.0,67683.0,0.12241235]
[1730752091224,0.54034255,67684.0,67683.0,0.21118282]
[1730752091419,0.54034255,67684.0,67683.0,0.12241235]
[1730752092523,0.62425148,67684.0,67683.0,0.19639861]
[1730752092724,1.28874461,67684.0,67678.0,0.07398626]
[1730752092917,1.28874461,67684.0,67677.0,0.07398626]
[1730752092918,0.44470893,67679.0,67677.0,0.07398626]
[1730752093110,0.15783593,67678.0,67677.0,0.07398626]
[1730752093311,0.08390893,67678.0,67673.0,0.07398626]
[1730752093513,0.073936,67670.0,67669.0,0.00221657]
[1730752093717,0.51864493,67670.0,67669.0,0.23679026]
[1730752094817,0.52164493,67670.0,67669.0,0.23679026]
[1730752095417,0.437736,67670.0,67669.0,0.23666904]
[1730752095617,0.437736,67670.0,67669.0,0.19786592]
[1730752095923,0.437736,67670.0,67669.0,0.10923198]
[1730752097311,0.48220244,67670.0,67669.0,0.10923198]
[1730752098721,0.48220244,67670.0,67669.0,0.10928577]
[1730752100334,0.48220244,67670.0,67669.0,0.18304118]
[1730752101216,0.48220244,67670.0,67669.0,0.07597198]
[1730752101417,0.4451974,67670.0,67669.0,0.07597198]
[1730752101612,0.4451974,67670.0,67669.0,0.14990898]
[1730752101824,0.4451974,67670.0,67669.0,0.18291598]
[1730752102627,0.4451974,67670.0,67669.0,0.10897898]
[1730752104227,0.40826644,67670.0,67669.0,0.18291598]
[1730752104919,0.48220244,67670.0,67669.0,0.18291598]
[1730752106116,0.48220244,67670.0,67669.0,0.10897898]
[1730752106733,0.48220244,67670.0,67669.0,0.00221657]
[1730752106922,0.51380244,67670.0,67669.0,0.00221657]
[1730752107525,0.98992244,67670.0,67669.0,0.05901211]
[1730752107728,0.073943,67663.0,67662.0,0.07375599]
[1730752107922,0.073943,67663.0,67655.0,0.08863394]
[1730752107923,0.073945,67661.0,67657.0,0.07375599]
[1730752108133,0.20183956,67658.0,67657.0,0.07375599]
[1730752108427,0.12789056,67658.0,67656.0,0.07374336]
[1730752108641,0.07395,67657.0,67656.0,0.07374336]
[1730752109339,0.43630501,67661.0,67656.0,0.10704384]
[1730752109340,0.00156001,67661.0,67656.0,0.10704384]
[1730752109527,0.073944,67663.0,67661.0,0.073945]
[1730752109721,0.073944,67663.0,67662.0,0.13734384]
[1730752110325,0.073944,67663.0,67662.0,0.14134384]
[1730752110326,0.074944,67663.0,67662.0,0.14134384]
[1730752110529,0.001,67663.0,67662.0,0.21528784]
[1730752110936,0.07326371,67665.0,67662.0,0.21528784]
[1730752111232,0.073942,67664.0,67663.0,0.10704384]
[1730752112119,0.073942,67664.0,67662.0,0.106244]
[1730752112319,0.073942,67664.0,67663.0,0.10640689]
[1730752113631,0.073942,67664.0,67663.0,0.18334989]
[1730752116135,0.073942,67664.0,67663.0,0.10940689]
[1730752117336,0.073942,67664.0,67663.0,0.18334989]
[1730752118234,0.073942,67664.0,67663.0,0.27180607]
[1730752120340,0.073942,67664.0,67663.0,0.18334989]
[1730752120638,0.073942,67664.0,67663.0,0.10940689]
[1730752121634,0.073942,67664.0,67663.0,0.23640702]
[1730752121833,0.073942,67664.0,67663.0,0.10940689]
[1730752122231,0.073942,67664.0,67663.0,0.23645336]
[1730752125434,0.073942,67664.0,67663.0,1.73645336]
[1730752126134,0.073942,67664.0,67663.0,1.73641192]
[1730752135244,0.073942,67664.0,67663.0,1.6094854]
[1730752135444,0.073942,67664.0,67663.0,1.60948614]
[1730752139136,0.073942,67664.0,67663.0,1.60956593]
[1730752139343,0.073942,67664.0,67663.0,0.10956593]
[1730752139936,0.08393147,67665.0,67663.0,0.10956593]
[1730752140148,0.08393147,67665.0,67664.0,0.073942]
[1730752140346,0.073942,67664.0,67663.0,0.10956593]
[1730752140940,0.073942,67664.0,67663.0,0.003]
[1730752141138,0.073942,67664.0,67663.0,0.10981232]
[1730752141332,0.073942,67664.0,67663.0,0.10881232]
[1730752142150,0.08393147,67665.0,67663.0,0.10881232]
[1730752142337,0.15787247,67665.0,67664.0,0.18075432]
[1730752142539,0.15787247,67665.0,67664.0,0.10681232]
[1730752143646,0.15887247,67665.0,67664.0,0.10681232]
[1730752144342,0.15787247,67665.0,67664.0,0.10881232]
[1730752144545,0.15887247,67665.0,67664.0,0.10881232]
[1730752144943,0.15887247,67665.0,67664.0,0.10875527]
[1730752145548,0.15887247,67665.0,67664.0,0.19749751]
[1730752146249,0.12186663,67665.0,67664.0,0.23598585]
[1730752146752,0.12186663,67665.0,67664.0,0.23605804]
[1730752148153,0.074941,67665.0,67664.0,0.31000004]
[1730752149552,0.074941,67665.0,67664.0,0.20321987]
[1730752149754,0.074941,67665.0,67664.0,0.30943316]
[1730752154151,0.074941,67665.0,67664.0,0.075942]
[1730752154356,0.074941,67665.0,67664.0,0.30931232]
[1730752154752,0.02313384,67665.0,67664.0,0.30931232]
[1730752154953,0.001,67665.0,67664.0,0.30931232]
[1730752155757,0.074941,67665.0,67664.0,0.30931232]
[1730752158961,0.074941,67665.0,67664.0,0.3084722]
[1730752161269,0.074941,67665.0,67664.0,0.18202515]
[1730752161862,0.074941,67665.0,67664.0,0.10808315]
[1730752163360,0.074941,67665.0,67664.0,0.18202515]
[1730752163560,0.074941,67665.0,67664.0,0.18202789]
[1730752165271,0.074941,67665.0,67664.0,0.10808589]
[1730752165974,0.074941,67665.0,67664.0,0.18202789]
[1730752168181,0.074941,67665.0,67664.0,0.18203085]
[1730752172575,0.074941,67665.0,67664.0,0.30846341]
[1730752172981,0.074941,67665.0,67664.0,0.30843564]
[1730752177673,0.074941,67665.0,67664.0,0.30932871]
[1730752178677,0.001,67665.0,67664.0,0.1824159]
[1730752178895,0.00148,67666.0,67664.0,0.89987951]
[1730752179082,0.3608,67674.0,67673.0,0.073932]
[1730752179374,0.3608,67674.0,67673.0,0.39125203]
[1730752179577,0.434731,67674.0,67673.0,0.39125203]
[1730752180078,0.48023051,67674.0,67673.0,0.39125203]
[1730752180781,0.48723051,67674.0,67673.0,0.39225203]
[1730752182272,0.48723051,67674.0,67673.0,0.3909862]
[1730752182473,0.49623051,67674.0,67673.0,0.3909862]
[1730752184377,0.49623051,67674.0,67673.0,0.15886347]
[1730752185382,0.42229951,67674.0,67673.0,0.15886347]
[1730752186193,0.44813147,67687.0,67673.0,0.56156294]
[1730752186483,0.073926,67680.0,67678.0,0.21694529]
[1730752186683,0.04688506,67679.0,67678.0,0.15785847]
[1730752186878,0.00221726,67679.0,67678.0,1.76399347]
[1730752187270,0.01421726,67679.0,67678.0,1.73167584]
[1730752187781,0.01421726,67679.0,67678.0,2.17495584]
[1730752187985,0.01421726,67679.0,67678.0,2.2070546]
[1730752188186,0.02721726,67679.0,67678.0,2.2070546]
[1730752188682,0.01521726,67679.0,67678.0,2.2070546]
[1730752188889,0.02621726,67679.0,67678.0,2.2090546]
[1730752189183,0.02621726,67679.0,67678.0,1.83953556]
[1730752189379,0.0034,67692.0,67678.0,2.2090546]
[1730752189581,0.073911,67692.0,67691.0,0.15784247]
[1730752190776,0.00221644,67694.0,67693.0,0.07391]
[1730752190975,0.07612544,67694.0,67693.0,0.07391]
[1730752191371,0.07612544,67694.0,67693.0,0.17880808]
[1730752191575,0.07612544,67694.0,67693.0,1.67880808]
[1730752192186,0.04644579,67694.0,67693.0,1.67880808]
[1730752192485,0.00821644,67694.0,67693.0,1.67980808]
[1730752192785,0.00221644,67694.0,67693.0,1.67980808]
[1730752193084,0.07612544,67694.0,67693.0,0.10589808]
[1730752193392,0.07612544,67694.0,67689.0,0.08865376]
[1730752193393,0.44316,67694.0,67689.0,0.05889584]
[1730752193578,0.073921,67683.0,67682.0,0.08391006]
[1730752193777,0.073925,67680.0,67677.0,0.07582652]
[1730752193984,0.08393147,67678.0,67677.0,0.00221646]
[1730752194275,0.08393147,67681.0,67677.0,0.00221646]
[1730752194479,0.073904,67700.0,67691.0,0.073913]
[1730752194682,0.003,67694.0,67693.0,0.07391]
[1730752194980,0.003,67694.0,67693.0,0.26195535]
[1730752195176,0.003,67694.0,67693.0,1.76195535]
[1730752195379,0.3608,67705.0,67701.0,0.073902]
[1730752195380,0.04402958,67702.0,67701.0,0.073902]
[1730752195678,0.073899,67704.0,67703.0,0.073899]
[1730752196581,0.3608,67705.0,67704.0,0.073898]
[1730752196783,0.3608,67705.0,67704.0,0.15782947]
[1730752196985,0.17964976,67707.0,67702.0,0.08393147]
[1730752197180,0.17964976,67707.0,67706.0,0.15782747]
[1730752197686,0.25354476,67707.0,67706.0,0.15782747]
[1730752198279,0.25354476,67707.0,67706.0,1.65782747]
[1730752198578,0.30472056,67707.0,67706.0,1.574896]
[1730752198773,0.30472056,67707.0,67706.0,1.65982747]
[1730752198980,0.23582556,67707.0,67706.0,1.65982747]
[1730752199587,0.3677,67727.0,67715.0,0.073886]
[1730752199795,0.0611,67726.0,67725.0,0.073875]
[1730752200090,0.0611,67726.0,67725.0,0.15780647]
[1730752200484,0.073878,67723.0,67722.0,0.08393147]
[1730752200680,0.073876,67725.0,67724.0,0.073877]
[1730752200880,0.0611,67726.0,67722.0,0.08393147]
[1730752201081,0.0611,67726.0,67725.0,0.074875]
[1730752201291,0.0611,67726.0,67725.0,1.574875]
[1730752201487,0.134974,67726.0,67725.0,1.501]
[1730752201788,0.073885,67716.0,67715.0,0.0069]
[1730752202099,0.073885,67716.0,67706.0,0.0103]
[1730752202100,0.80553147,67716.0,67706.0,0.0103]
[1730752202391,0.80553147,67716.0,67705.0,0.09773147]
[1730752202392,0.434695,67707.0,67705.0,0.08393147]
[1730752202690,0.031,67706.0,67705.0,0.15782847]
[1730752204091,0.0446897,67714.0,67710.0,0.073891]
[1730752204287,0.0314,67714.0,67712.0,0.08393147]
[1730752204489,0.073889,67713.0,67712.0,0.08393147]
[1730752204786,0.0314,67714.0,67713.0,0.073889]
[1730752205494,0.073889,67713.0,67712.0,0.08393147]
[1730752205995,0.073889,67713.0,67712.0,0.08493147]
[1730752206386,0.073889,67713.0,67712.0,0.08393147]
[1730752206993,0.0314,67714.0,67713.0,0.073889]
[1730752207591,0.0314,67714.0,67712.0,0.08493147]
[1730752207792,0.073889,67713.0,67712.0,0.08493147]
[1730752208100,0.073889,67713.0,67712.0,0.08393147]
[1730752208488,0.073889,67713.0,67712.0,0.08493147]
[1730752208993,0.073889,67713.0,67712.0,0.08593147]
[1730752213801,0.073889,67713.0,67712.0,0.002]
[1730752216602,0.58337344,67713.0,67712.0,0.002]
[1730752216794,0.61557344,67713.0,67712.0,0.002]
[1730752217299,0.49944197,67713.0,67712.0,0.002]
[1730752219094,0.42555297,67713.0,67712.0,0.08593147]
[1730752219296,0.42555297,67713.0,67712.0,0.15982147]
[1730752220001,0.14619749,67721.0,67712.0,2.11290294]
[1730752220204,0.14619749,67721.0,67720.0,0.51861247]
[1730752221600,0.14619749,67721.0,67720.0,0.51961247]
[1730752221794,0.073877,67724.0,67723.0,0.073878]
[1730752222702,0.073873,67727.0,67726.0,0.073873]
[1730752222904,0.07387,67731.0,67730.0,0.073869]
[1730752223104,0.3608,67732.0,67730.0,0.08393147]
[1730752223303,0.3608,67732.0,67731.0,0.073869]
[1730752223304,0.434668,67732.0,67731.0,0.073869]
[1730752223703,0.434668,67732.0,67727.0,0.137073]
[1730752223704,0.073872,67728.0,67727.0,0.137073]
[1730752223896,0.073872,67728.0,67727.0,0.106173]
[1730752224907,0.11005747,67728.0,67727.0,0.0323]
[1730752225111,0.11005747,67728.0,67726.0,0.001]
[1730752225312,0.073872,67728.0,67726.0,0.001]
[1730752226101,0.073873,67727.0,67726.0,0.001]
[1730752226295,0.073873,67727.0,67723.0,0.073877]
[1730752227096,0.3608,67732.0,67720.0,0.3931]
[1730752227298,0.07387,67730.0,67724.0,0.12776515]
[1730752227599,0.07387,67730.0,67726.0,0.001]
[1730752227805,0.073872,67729.0,67726.0,0.001]
[1730752228705,0.073873,67728.0,67726.0,0.001]
[1730752229110,0.073873,67728.0,67725.0,0.073875]
[1730752230013,0.073873,67728.0,67720.0,0.3931]
[1730752230014,0.10241719,67727.0,67726.0,0.001]
[1730752230195,0.10241719,67727.0,67726.0,0.002]
[1730752230707,0.10241719,67727.0,67726.0,0.001]
[1730752230907,0.10241719,67727.0,67725.0,0.002]
[1730752231100,0.073873,67727.0,67725.0,0.002]
[1730752231300,0.3608,67732.0,67726.0,0.001]
[1730752231301,0.434668,67732.0,67726.0,0.001]
[1730752231501,0.20163815,67727.0,67726.0,0.001]
[1730752231906,0.073874,67726.0,67725.0,0.001]
[1730752232107,0.434674,67726.0,67725.0,0.001]
[1730752232611,0.073883,67718.0,67717.0,0.0103]
[1730752232801,0.073883,67718.0,67710.0,0.0328]
[1730752232802,0.073889,67713.0,67710.0,0.0328]
[1730752233008,0.073889,67713.0,67711.0,1.5]
[1730752233411,0.3608,67712.0,67707.0,0.073895]
[1730752233716,0.3917,67712.0,67705.0,0.073896]
[1730752233913,0.3917,67712.0,67706.0,1.5]
[1730752234213,0.073893,67709.0,67707.0,0.073895]
[1730752236211,0.073893,67709.0,67707.0,0.074895]
[1730752236413,0.46559,67712.0,67708.0,0.073893]
[1730752236609,0.46559,67712.0,67709.0,0.073893]
[1730752237413,0.3917,67712.0,67709.0,0.073893]
[1730752237617,0.073891,67711.0,67709.0,0.073893]
[1730752238015,0.073891,67711.0,67709.0,0.074893]
[1730752238314,0.073892,67710.0,67709.0,0.074893]
[1730752239611,0.073892,67710.0,67709.0,0.073893]
[1730752239913,0.073892,67710.0,67709.0,0.074893]
[1730752240419,0.073892,67710.0,67709.0,0.075893]
[1730752241703,0.073892,67710.0,67709.0,1.575893]
[1730752241902,0.073892,67710.0,67709.0,1.574893]
[1730752242304,0.073892,67710.0,67709.0,1.575893]
[1730752243116,0.073892,67710.0,67709.0,1.574893]
[1730752243315,0.073892,67710.0,67709.0,1.575893]
[1730752244609,0.03560579,67712.0,67711.0,0.073891]
[1730752244924,0.073874,67727.0,67709.0,1.502]
[1730752244925,0.073886,67716.0,67715.0,0.073886]
[1730752245110,0.0333,67721.0,67710.0,0.0331]
[1730752245418,0.0333,67721.0,67712.0,0.073889]
[1730752245419,0.073889,67713.0,67712.0,0.073889]
[1730752246216,0.13862991,67713.0,67712.0,0.073889]
[1730752246613,0.13862991,67713.0,67712.0,0.074889]
[1730752247515,0.49942991,67713.0,67712.0,0.001]
[1730752247716,0.54479756,67713.0,67712.0,0.001]
[1730752247915,0.54479766,67713.0,67712.0,0.001]
[1730752248107,0.18399766,67713.0,67712.0,0.001]
[1730752248420,0.18399766,67713.0,67712.0,0.002]
[1730752248723,0.18399766,67713.0,67712.0,0.001]
[1730752248724,0.13862991,67713.0,67712.0,0.001]
[1730752248918,0.18399721,67713.0,67712.0,0.002]
[1730752250314,0.21950344,67713.0,67712.0,0.001]
[1730752250515,0.21950344,67713.0,67712.0,0.002]
[1730752253324,0.10939523,67713.0,67712.0,0.002]
[1730752256527,0.47452,67722.0,67712.0,0.002]
[1730752256528,0.36232,67722.0,67712.0,0.002]
[1730752256728,0.073882,67719.0,67715.0,0.08386855]
[1730752257320,0.073882,67719.0,67716.0,0.073885]
[1730752257524,0.073884,67717.0,67716.0,0.073885]
[1730752257722,0.39602296,67722.0,67715.0,0.08386855]
[1730752257723,0.073883,67719.0,67715.0,0.08386855]
[1730752257924,0.39602296,67722.0,67720.0,0.07388]
[1730752257925,0.46990196,67722.0,67720.0,0.07388]
[1730752258123,0.46990196,67722.0,67721.0,0.07388]
[1730752258124,0.10910196,67722.0,67721.0,0.07388]
[1730752258425,0.073881,67720.0,67719.0,0.073882]
[1730752258626,0.073878,67723.0,67720.0,0.07388]
[1730752258830,0.07388,67721.0,67720.0,0.07388]
[1730752259721,0.07388,67721.0,67720.0,0.07488]
[1730752260522,0.07388,67721.0,67720.0,0.001]
[1730752260721,0.20166562,67721.0,67720.0,0.001]
[1730752262131,0.11011706,67699.0,67695.0,0.00221554]
[1730752262336,0.434707,67696.0,67695.0,0.00221554]
[1730752262528,0.073915,67689.0,67688.0,0.0103]
[1730752262727,0.073918,67687.0,67683.0,1.573921]
[1730752262929,0.11011706,67686.0,67683.0,1.574761]
[1730752263225,0.11011706,67686.0,67683.0,0.073921]
[1730752263429,0.11011706,67686.0,67684.0,0.073919]
[1730752263629,0.32444151,67685.0,67678.0,0.032]
[1730752263827,0.11011706,67684.0,67683.0,0.20170662]
[1730752264128,0.11011706,67684.0,67683.0,0.073921]
[1730752264326,0.14660975,67684.0,67683.0,0.073921]
[1730752264527,0.11011706,67684.0,67683.0,0.073921]
[1730752264835,0.27146196,67687.0,67684.0,0.07392]
[1730752265028,0.11015219,67686.0,67685.0,0.073919]
[1730752266333,0.11015219,67686.0,67685.0,0.079919]
[1730752266537,0.18407019,67686.0,67685.0,0.006]
[1730752267135,0.13868659,67686.0,67685.0,0.006]
[1730752267442,0.18407134,67686.0,67685.0,0.006]
[1730752268028,0.18407134,67686.0,67685.0,0.01]
[1730752268338,0.03692409,67686.0,67685.0,0.004]
[1730752268639,0.03692409,67686.0,67685.0,0.012]